lending/lending_fUSD_20240603
["ID","MTS","AMOUNT","RATE_DAILY","PERIOD"]
[328426301,1717375835049,-500.0,0.00030136,4]
[328426302,1717375835058,-500.0,0.00030136,4]
[328426303,1717375835067,-526.02139723,0.00030136,4]
[328426304,1717375835077,-500.0,0.00030136,4]
[328426305,1717375835086,-500.0,0.00030136,4]
[328426306,1717375835095,-500.0,0.00030136,4]
[328426307,1717375835104,-500.0,0.00030136,4]
[328426308,1717375835114,-500.0,0.00030136,4]
[328426309,1717375835123,-500.0,0.00030136,4]
[328426310,1717375835131,-500.0,0.00030136,4]
[328426311,1717375835140,-500.0,0.00030136,4]
[328426312,1717375835149,-500.0,0.00030136,4]
[328426313,1717375835158,-614.32,0.00030136,4]
[328426314,1717375835167,-500.0,0.00030136,4]
[328426315,1717375835177,-500.0,0.00030136,4]
[328426316,1717375835185,-500.0,0.00030136,4]
[328426317,1717375835195,-500.0,0.00030136,4]
[328426318,1717375835204,-500.0,0.00030136,4]
[328426319,1717375835215,-500.0,0.00030136,4]
[328426320,1717375835224,-500.0,0.00030136,4]
[328426321,1717375835233,-500.0,0.00030136,4]
[328426322,1717375835242,-500.0,0.00030136,4]
[328426323,1717375835252,-500.0,0.00030136,4]
[328426324,1717375835262,-500.0,0.00030136,4]
[328426325,1717375835271,-500.0,0.00030136,4]
[328426326,1717375835280,-500.0,0.00030136,4]
[328426327,1717375835289,-500.0,0.00030136,4]
[328426328,1717375835298,-518.51,0.00030136,4]
[328426329,1717375835307,-500.0,0.00030136,4]
[328426330,1717375835316,-595.25,0.00030136,4]
[328426331,1717375835325,-500.0,0.00030136,4]
[328426332,1717375835334,-500.0,0.00030136,4]
[328426333,1717375835343,-765.95,0.00030136,4]
[328426334,1717375835353,-996.77,0.00030136,4]
[328426335,1717375835362,-519.11,0.00030136,4]
[328426336,1717375835371,-500.0,0.00030136,4]
[328426337,1717375835380,-1081.97,0.00030136,4]
[328426338,1717375835389,-500.0,0.00030136,4]
[328426339,1717375835398,-500.0,0.00030136,2]
[328426340,1717375835407,-500.0,0.00030136,4]
[328426341,1717375835417,-500.0,0.00030136,4]
[328426342,1717375835426,-500.0,0.00030136,4]
[328426343,1717375835435,-1090.09,0.00030136,4]
[328426344,1717375835444,-500.0,0.00030136,4]
[328426345,1717375835453,-500.0,0.00030136,4]
[328426346,1717375835463,-500.0,0.00030136,4]
[328426347,1717375835473,-839.17,0.00030136,4]
[328426348,1717375835481,-562.88264634,0.00030136,4]
[328426349,1717375835491,-500.0,0.00030136,4]
[328426350,1717375835500,-500.0,0.00030136,4]
[328426351,1717375835509,-954.14,0.00030136,4]
[328426352,1717375835518,-6653.65,0.00030136,4]
[328426353,1717375835527,-2437.95,0.00030136,4]
[328426354,1717375835537,-151.0,0.00030136,7]
[328426355,1717375835546,-500.0,0.00030136,4]
[328426356,1717375835555,-151.0,0.00030136,7]
[328426357,1717375835564,-289.0,0.00030136,4]
[328426358,1717375835573,-500.0,0.00030136,4]
[328426359,1717375835582,-902.19,0.00030136,4]
[328426360,1717375835592,-769.04,0.00030136,4]
[328426361,1717375835600,-500.0,0.00030136,4]
[328426362,1717375835610,-500.0,0.00030136,4]
[328426363,1717375835619,-500.0,0.00030136,4]
[328426364,1717375835628,-500.0,0.00030136,4]
[328426365,1717375835637,-500.0,0.00030136,4]
[328426366,1717375835645,-4080.94,0.00030136,4]
[328426367,1717375835654,-500.0,0.00030136,4]
[328426368,1717375835663,-500.0,0.00030136,4]
[328426369,1717375835672,-2481.18,0.00030136,4]
[328426370,1717375835681,-500.0,0.00030136,4]
[328426371,1717375835692,-500.0,0.00030136,4]
[328426372,1717375835700,-500.0,0.00030136,4]
[328426373,1717375835711,-1481.3,0.00030136,4]
[328426374,1717375835722,-842.97,0.00030136,4]
[328426375,1717375835731,-500.0,0.00030136,4]
[328426376,1717375835739,-512.38,0.00030136,4]
[328426377,1717375835749,-500.0,0.00030136,4]
[328426378,1717375835757,-500.0,0.00030136,4]
[328426379,1717375835767,-500.0,0.00030136,4]
[328426380,1717375835776,-500.0,0.00030136,4]
[328426381,1717375835785,-500.0,0.00030136,4]
[328426382,1717375835794,-7825.16,0.00030136,4]
[328426383,1717375835803,-1448.35,0.00030136,4]
[328426384,1717375835813,-500.0,0.00030136,4]
[328426385,1717375835822,-1025.58,0.00030136,4]
[328426386,1717375835831,-500.0,0.00030136,4]
[328426387,1717375835840,-576.12,0.00030136,4]
[328426388,1717375835849,-500.0,0.00030136,4]
[328426389,1717375835858,-2979.92,0.00030136,4]
[328426390,1717375835867,-500.0,0.00030136,4]
[328426391,1717375835876,-500.0,0.00030136,4]
[328426392,1717375835886,-500.0,0.00030136,4]
[328426393,1717375835895,-500.0,0.00030136,4]
[328426394,1717375835904,-500.0,0.00030136,4]
[328426395,1717375835913,-500.0,0.00030136,4]
[328426396,1717375835922,-495.7676894,0.00030136,4]
[328426397,1717375835932,-580.47,0.00030136,4]
[328426398,1717375835941,-500.0,0.00030136,4]
[328426399,1717375835950,-500.0,0.00030136,4]
[328426400,1717375835961,-1080.46,0.00030136,4]
[328426401,1717375835970,-530.6,0.00030136,4]
[328426402,1717375835980,-1633.05,0.00030136,4]
[328426403,1717375835990,-3215.67,0.00030136,4]
[328426404,1717375836000,-500.0,0.00030136,4]
[328426405,1717375836009,-500.0,0.00030136,4]
[328426406,1717375836018,-500.0,0.00030136,4]
[328426407,1717375836027,-500.0,0.00030136,4]
[328426408,1717375836037,-500.0,0.00030136,4]
[328426409,1717375836046,-922.36,0.00030136,4]
[328426410,1717375836055,-151.0,0.00030136,7]
[328426411,1717375836064,-500.0,0.00030136,4]
[328426412,1717375836074,-500.0,0.00030136,4]
[328426413,1717375836083,-500.0,0.00030136,4]
[328426414,1717375836092,-500.0,0.00030136,4]
[328426415,1717375836102,-500.0,0.00030136,4]
[328426416,1717375836113,-500.0,0.00030136,4]
[328426417,1717375836122,-908.08,0.00030136,4]
[328426418,1717375836132,-531.45742716,0.00030136,4]
[328426419,1717375836142,-522.42,0.00030136,4]
[328426420,1717375836152,-615.47164596,0.00030136,4]
[328426421,1717375836161,-617.09,0.00030136,4]
[328426422,1717375836170,-500.0,0.00030136,4]
[328426423,1717375836180,-500.0,0.00030136,4]
[328426424,1717375836189,-500.0,0.00030136,4]
[328426425,1717375836198,-538.76,0.00030136,4]
[328426426,1717375836209,-594.39,0.00030136,4]
[328426427,1717375836218,-500.0,0.00030136,4]
[328426428,1717375836228,-500.0,0.00030136,4]
[328426429,1717375836237,-922.21,0.00030136,4]
[328426430,1717375836247,-500.0,0.00030136,4]
[328426431,1717375836257,-1150.79,0.00030136,4]
[328426432,1717375836266,-500.0,0.00030136,4]
[328426433,1717375836275,-500.0,0.00030136,4]
[328426434,1717375836284,-500.0,0.00030136,4]
[328426435,1717375836293,-186.2392468,0.00030136,4]
[328426436,1717375836302,-500.0,0.00030136,4]
[328426437,1717375836311,-500.0,0.00030136,4]
[328426438,1717375836320,-500.0,0.00030136,4]
[328426439,1717375836329,-1672.58,0.00030136,4]
[328426440,1717375836339,-742.18,0.00030136,4]
[328426441,1717375836347,-500.0,0.00030136,4]
[328426442,1717375836356,-152.81367854,0.00030136,4]
[328426443,1717375836365,-981.48,0.00030136,4]
[328426444,1717375836374,-500.0,0.00030136,4]
[328426445,1717375836384,-500.0,0.00030136,4]
[328426446,1717375836393,-500.0,0.00030136,4]
[328426447,1717375836403,-500.0,0.00030136,4]
[328426448,1717375836412,-957.93,0.00030136,4]
[328426449,1717375836422,-500.0,0.00030136,4]
[328426450,1717375836431,-500.0,0.00030136,4]
[328426451,1717375836441,-500.0,0.00030136,4]
[328426452,1717375836451,-500.0,0.00030136,4]
[328426453,1717375836461,-621.0,0.00030136,4]
[328426454,1717375836470,-500.0,0.00030136,4]
[328426455,1717375836479,-525.70998516,0.00030136,4]
[328426456,1717375836488,-500.0,0.00030136,4]
[328426457,1717375836498,-500.0,0.00030136,4]
[328426458,1717375836507,-500.0,0.00030136,4]
[328426459,1717375836516,-500.0,0.00030136,4]
[328426460,1717375836526,-500.0,0.00030136,4]
[328426461,1717375836535,-500.0,0.00030136,4]
[328426462,1717375836545,-500.0,0.00030136,4]
[328426463,1717375836555,-1376.09,0.00030136,4]
[328426464,1717375836565,-500.0,0.00030136,4]
[328426465,1717375836574,-500.0,0.00030136,4]
[328426466,1717375836584,-500.0,0.00030136,4]
[328426467,1717375836593,-500.0,0.00030136,4]
[328426468,1717375836603,-500.0,0.00030136,4]
[328426469,1717375836612,-551.31,0.00030136,4]
[328426470,1717375836622,-785.5,0.00030136,4]
[328426471,1717375836632,-521.96,0.00030136,4]
[328426472,1717375836642,-823.365017,0.00030136,7]
[328426473,1717375836651,-500.0,0.00030136,4]
[328426474,1717375836660,-256.781942,0.00030136,7]
[328426475,1717375836669,-823.365017,0.00030136,7]
[328426476,1717375836679,-500.0,0.00030136,4]
[328426477,1717375836689,-500.0,0.00030136,4]
[328426478,1717375836698,-500.0,0.00030136,4]
[328426479,1717375836708,-415.59,0.00030136,4]
[328426480,1717375836722,-500.0,0.00030136,4]
[328426481,1717375836732,-506.13,0.00030136,4]
[328426482,1717375836741,-500.0,0.00030136,4]
[328426483,1717375836751,-500.0,0.00030136,4]
[328426484,1717375836762,-500.0,0.00030136,4]
[328426485,1717375836772,-500.0,0.00030136,4]
[328426486,1717375836782,-577.23,0.00030136,4]
[328426487,1717375836794,-500.0,0.00030136,4]
[328426488,1717375836805,-536.92,0.00030136,4]
[328426489,1717375836816,-500.0,0.00030136,4]
[328426490,1717375836826,-500.0,0.00030136,4]
[328426491,1717375836836,-500.0,0.00030136,4]
[328426492,1717375836846,-500.0,0.00030136,4]
[328426493,1717375836856,-634.67,0.00030136,4]
[328426494,1717375836866,-500.0,0.00030136,4]
[328426495,1717375836875,-500.0,0.00030136,4]
[328426496,1717375836885,-500.0,0.00030136,4]
[328426497,1717375836894,-151.0,0.00030136,7]
[328426498,1717375836904,-611.82,0.00030136,4]
[328426499,1717375836914,-500.0,0.00030136,4]
[328426500,1717375836923,-500.0,0.00030136,4]
[328426501,1717375836933,-500.0,0.00030136,4]
[328426502,1717375836942,-500.0,0.00030136,4]
[328426503,1717375836951,-500.0,0.00030136,4]
[328426504,1717375836961,-500.0,0.00030136,4]
[328426505,1717375836970,-657.75,0.00030136,4]
[328426506,1717375836979,-500.0,0.00030136,4]
[328426507,1717375836989,-500.0,0.00030136,4]
[328426508,1717375836999,-500.0,0.00030136,4]
[328426509,1717375837008,-500.0,0.00030136,4]
[328426510,1717375837018,-500.0,0.00030136,4]
[328426511,1717375837028,-500.0,0.00030136,4]
[328426512,1717375837038,-500.0,0.00030136,4]
[328426513,1717375837048,-1950.14,0.00030136,4]
[328426514,1717375837058,-574.75,0.00030136,4]
[328426515,1717375837067,-500.0,0.00030136,4]
[328426516,1717375837077,-500.0,0.00030136,4]
[328426517,1717375837087,-754.98,0.00030136,4]
[328426518,1717375837096,-4525.51,0.00030136,4]
[328426519,1717375837106,-591.95,0.00030136,4]
[328426520,1717375837115,-500.0,0.00030136,4]
[328426521,1717375837125,-500.0,0.00030136,4]
[328426522,1717375837135,-289.263838,0.00030136,7]
[328426523,1717375837144,-923.68,0.00030136,4]
[328426524,1717375837155,-500.0,0.00030136,4]
[328426525,1717375837164,-1319.35,0.00030136,4]
[328426526,1717375837174,-1608.86,0.00030136,4]
[328426527,1717375837184,-1073.08,0.00030136,4]
[328426528,1717375837194,-500.0,0.00030136,4]
[328426529,1717375837203,-880.35,0.00030136,4]
[328426530,1717375837214,-1015.93,0.00030136,4]
[328426531,1717375837223,-3640.04,0.00030136,4]
[328426532,1717375837232,-500.0,0.00030136,4]
[328426533,1717375837242,-529.29,0.00030136,4]
[328426534,1717375837252,-500.0,0.00030136,4]
[328426535,1717375837262,-500.0,0.00030136,4]
[328426536,1717375837271,-547.8,0.00030136,4]
[328426537,1717375837281,-980.99,0.00030136,4]
[328426538,1717375837290,-1431.45,0.00030136,4]
[328426539,1717375837299,-500.0,0.00030136,4]
[328426540,1717375837310,-500.0,0.00030136,4]
[328426541,1717375837319,-500.0,0.00030136,4]
[328426542,1717375837329,-355.50398061,0.00030136,4]
[328426543,1717375837339,-500.0,0.00030136,4]
[328426544,1717375837349,-473.91777594,0.00030136,4]
[328426545,1717375837359,-500.0,0.00030136,4]
[328426546,1717375837368,-500.0,0.00030136,4]
[328426547,1717375837378,-8782.63,0.00030136,4]
[328426548,1717375837388,-500.0,0.00030136,4]
[328426549,1717375837397,-500.0,0.00030136,4]
[328426550,1717375837407,-1149.04,0.00030136,4]
[328426551,1717375837417,-500.0,0.00030136,4]
[328426552,1717375837427,-500.0,0.00030136,4]
[328426553,1717375837437,-500.0,0.00030136,4]
[328426554,1717375837447,-37787.21,0.00030136,4]
[328426555,1717375837456,-539.81,0.00030136,4]
[328426556,1717375837467,-631.85,0.00030136,4]
[328426557,1717375837477,-500.0,0.00030136,4]
[328426558,1717375837487,-500.0,0.00030136,4]
[328426559,1717375837496,-13703.11,0.00030136,4]
[328426560,1717375837506,-1451.07,0.00030136,4]
[328426561,1717375837516,-500.0,0.00030136,4]
[328426562,1717375837525,-500.0,0.00030136,4]
[328426563,1717375837535,-1351.79,0.00030136,4]
[328426564,1717375837544,-537.44,0.00030136,4]
[328426565,1717375837554,-500.0,0.00030136,4]
[328426566,1717375837565,-4606.42,0.00030136,4]
[328426567,1717375837575,-500.0,0.00030136,4]
[328426568,1717375837585,-500.0,0.00030136,4]
[328426569,1717375837595,-733.15,0.00030136,4]
[328426570,1717375837606,-500.0,0.00030136,4]
[328426571,1717375837617,-500.0,0.00030136,4]
[328426572,1717375837627,-500.0,0.00030136,4]
[328426573,1717375837637,-500.0,0.00030136,4]
[328426574,1717375837647,-500.0,0.00030136,4]
[328426575,1717375837656,-500.0,0.00030136,4]
[328426576,1717375837666,-1443.11,0.00030136,4]
[328426578,1717375837676,-500.0,0.00030136,4]
[328426579,1717375837686,-500.0,0.00030136,4]
[328426581,1717375837696,-500.0,0.00030136,4]
[328426582,1717375837706,-500.0,0.00030136,4]
[328426583,1717375837721,-202.13068543,0.00030137,2]
[328426584,1717375837731,-500.0,0.00030137,2]
[328426585,1717375837740,-487.95063679,0.00030244,15]
[328426586,1717375837750,-151.0,0.0003031,2]
[328426587,1717375837760,-151.0,0.0003031,2]
[328426588,1717375837770,-151.0,0.0003031,2]
[328426589,1717375837779,-151.0,0.0003031,2]
[328426590,1717375837789,-151.0,0.0003031,2]
[328426591,1717375837799,-151.0,0.0003031,2]
[328426592,1717375837808,-192.0,0.0003031,2]
[328426593,1717375837818,-564.06280194,0.0003031,2]
[328426594,1717375837828,-1054.52311963,0.0003038,2]
[328426595,1717375837838,-1027.31532829,0.0003038,2]
[328426596,1717375837848,-1126.61315971,0.0003038,2]
[328426597,1717375837858,-1056.62352032,0.0003038,2]
[328426598,1717375837868,-151.0,0.0003038,7]
[328426599,1717375837878,-151.0,0.0003038,7]
[328426600,1717375837889,-151.0,0.0003038,7]
[328426601,1717375837898,-1083.89108785,0.0003038,2]
[328426602,1717375837909,-150.0,0.00030409,2]
[328426603,1717375837919,-300.0,0.00030409,2]
[328426604,1717375837929,-450.0,0.00030409,2]
[328426605,1717375837938,-600.0,0.00030409,2]
[328426606,1717375837948,-750.0,0.00030409,2]
[328426607,1717375837958,-500.0,0.0003041,4]
[328426608,1717375837968,-500.0,0.0003041,4]
[328426609,1717375837979,-500.0,0.0003041,4]
[328426610,1717375837988,-500.0,0.0003041,4]
[328426611,1717375837999,-500.0,0.0003041,4]
[328426612,1717375838009,-500.0,0.0003041,4]
[328426613,1717375838019,-500.0,0.0003041,4]
[328426614,1717375838030,-500.0,0.0003041,4]
[328426615,1717375838040,-500.0,0.0003041,4]
[328426616,1717375838050,-500.0,0.0003041,4]
[328426617,1717375838060,-500.0,0.0003041,4]
[328426618,1717375838069,-500.0,0.0003041,4]
[328426619,1717375838079,-500.0,0.0003041,4]
[328426620,1717375838089,-500.0,0.0003041,4]
[328426621,1717375838099,-500.0,0.0003041,4]
[328426622,1717375838109,-500.0,0.0003041,4]
[328426623,1717375838118,-500.0,0.0003041,4]
[328426624,1717375838128,-598.6661937,0.0003041,4]
[328426625,1717375838138,-500.0,0.0003041,4]
[328426626,1717375838148,-500.0,0.0003041,4]
[328426627,1717375838158,-500.0,0.0003041,4]
[328426628,1717375838169,-500.0,0.0003041,4]
[328426629,1717375838179,-500.0,0.0003041,4]
[328426630,1717375838189,-500.0,0.0003041,4]
[328426631,1717375838199,-912.83,0.0003041,4]
[328426632,1717375838208,-500.0,0.0003041,4]
[328426633,1717375838219,-500.0,0.0003041,4]
[328426634,1717375838228,-1265.94,0.0003041,4]
[328426635,1717375838239,-500.0,0.0003041,4]
[328426636,1717375838249,-500.0,0.0003041,4]
[328426637,1717375838258,-500.0,0.0003041,4]
[328426638,1717375838268,-500.0,0.0003041,4]
[328426639,1717375838278,-500.0,0.0003041,4]
[328426640,1717375838288,-217.68009644,0.0003041,4]
[328426641,1717375838298,-640.63,0.0003041,4]
[328426642,1717375838308,-500.0,0.0003041,4]
[328426643,1717375838318,-500.0,0.0003041,4]
[328426644,1717375838327,-500.0,0.0003041,4]
[328426645,1717375838338,-500.0,0.0003041,4]
[328426646,1717375838348,-500.0,0.0003041,4]
[328426647,1717375838357,-500.0,0.0003041,4]
[328426648,1717375838367,-500.0,0.0003041,4]
[328426649,1717375838377,-500.0,0.0003041,4]
[328426650,1717375838387,-500.0,0.0003041,4]
[328426651,1717375838396,-500.0,0.0003041,4]
[328426652,1717375838406,-633.1,0.0003041,4]
[328426653,1717375838415,-500.0,0.0003041,4]
[328426654,1717375838426,-500.0,0.0003041,4]
[328426655,1717375838435,-500.0,0.0003041,4]
[328426656,1717375838445,-500.0,0.0003041,4]
[328426657,1717375838642,-500.0,0.0003041,4]
[328426658,1717375838688,-500.0,0.0003041,4]
[328426659,1717375838697,-500.0,0.0003041,4]
[328426660,1717375838707,-500.0,0.0003041,4]
[328426661,1717375838722,-323.10273557,0.0003041,4]
[328426662,1717375838731,-500.0,0.0003041,4]
[328426663,1717375838740,-500.0,0.0003041,4]
[328426664,1717375838749,-500.0,0.0003041,4]
[328426665,1717375838760,-500.0,0.0003041,4]
[328426666,1717375838770,-500.0,0.0003041,4]
[328426667,1717375838780,-582.08,0.0003041,4]
[328426668,1717375838791,-500.0,0.0003041,4]
[328426669,1717375838800,-500.0,0.0003041,4]
[328426670,1717375838810,-500.0,0.0003041,4]
[328426671,1717375838819,-560.66,0.0003041,4]
[328426672,1717375838828,-500.0,0.0003041,4]
[328426673,1717375838838,-500.0,0.0003041,4]
[328426674,1717375838848,-500.0,0.0003041,4]
[328426675,1717375838857,-500.0,0.0003041,4]
[328426676,1717375838867,-500.0,0.0003041,4]
[328426677,1717375838876,-500.0,0.0003041,4]
[328426678,1717375838886,-500.0,0.0003041,4]
[328426679,1717375838895,-500.0,0.0003041,4]
[328426680,1717375838904,-500.0,0.0003041,4]
[328426681,1717375838914,-500.0,0.0003041,4]
[328426682,1717375838923,-500.0,0.0003041,4]
[328426683,1717375838932,-519.15100894,0.0003041,4]
[328426684,1717375838942,-500.0,0.0003041,4]
[328426685,1717375838951,-752.01,0.0003041,4]
[328426686,1717375838961,-500.0,0.0003041,4]
[328426687,1717375838970,-500.0,0.0003041,4]
[328426688,1717375838979,-500.0,0.0003041,4]
[328426689,1717375838989,-500.0,0.0003041,4]
[328426690,1717375838998,-500.0,0.0003041,4]
[328426691,1717375839007,-500.0,0.0003041,4]
[328426692,1717375839017,-586.3,0.0003041,4]
[328426693,1717375839026,-1639.67,0.0003041,4]
[328426694,1717375839035,-500.0,0.0003041,4]
[328426695,1717375839045,-500.0,0.0003041,4]
[328426696,1717375839055,-507.95,0.0003041,4]
[328426697,1717375839065,-500.0,0.0003041,4]
[328426698,1717375839074,-500.0,0.0003041,4]
[328426699,1717375839084,-1190.53,0.0003041,4]
[328426700,1717375839094,-500.0,0.0003041,4]
[328426701,1717375839103,-500.0,0.0003041,4]
[328426702,1717375839112,-500.0,0.0003041,4]
[328426703,1717375839122,-500.0,0.0003041,4]
[328426704,1717375839132,-500.0,0.0003041,4]
[328426705,1717375839142,-634.84,0.0003041,4]
[328426706,1717375839152,-500.0,0.0003041,4]
[328426707,1717375839163,-500.0,0.0003041,4]
[328426708,1717375839173,-547.24,0.0003041,4]
[328426709,1717375839183,-500.0,0.0003041,4]
[328426710,1717375839192,-500.0,0.0003041,4]
[328426711,1717375839202,-500.0,0.0003041,4]
[328426712,1717375839212,-364.58352433,0.0003041,4]
[328426713,1717375839222,-500.0,0.0003041,4]
[328426714,1717375839231,-643.99,0.0003041,4]
[328426715,1717375839240,-658.79,0.0003041,4]
[328426716,1717375839250,-500.0,0.0003041,4]
[328426717,1717375839260,-500.0,0.0003041,4]
[328426718,1717375839270,-739.73,0.0003041,4]
[328426719,1717375839279,-500.0,0.0003041,4]
[328426720,1717375839289,-500.0,0.0003041,4]
[328426721,1717375839299,-500.0,0.0003041,4]
[328426722,1717375839309,-500.0,0.0003041,4]
[328426723,1717375839318,-500.0,0.0003041,4]
[328426724,1717375839327,-500.0,0.0003041,4]
[328426725,1717375839336,-500.17,0.0003041,4]
[328426726,1717375839346,-173.35995842,0.0003041,4]
[328426727,1717375839358,-500.0,0.0003041,4]
[328426728,1717375839367,-500.0,0.0003041,4]
[328426729,1717375839376,-500.0,0.0003041,4]
[328426730,1717375839386,-500.0,0.0003041,4]
[328426731,1717375839396,-598.11,0.0003041,4]
[328426732,1717375839405,-500.0,0.0003041,4]
[328426733,1717375839414,-500.0,0.0003041,4]
[328426734,1717375839424,-500.0,0.0003041,4]
[328426735,1717375839433,-500.0,0.0003041,4]
[328426736,1717375839442,-500.0,0.0003041,4]
[328426737,1717375839452,-796.36,0.0003041,4]
[328426738,1717375839462,-500.0,0.0003041,4]
[328426739,1717375839471,-500.0,0.0003041,4]
[328426740,1717375839482,-500.0,0.0003041,4]
[328426741,1717375839492,-500.0,0.0003041,4]
[328426742,1717375839501,-500.0,0.0003041,4]
[328426743,1717375839510,-150.0,0.0003041,4]
[328426744,1717375839520,-500.0,0.0003041,4]
[328426745,1717375839530,-500.0,0.0003041,4]
[328426746,1717375839540,-500.0,0.0003041,4]
[328426747,1717375839549,-500.0,0.0003041,4]
[328426749,1717375839558,-500.0,0.0003041,4]
[328426750,1717375839568,-568.65436951,0.0003041,4]
[328426752,1717375839577,-500.0,0.0003041,4]
[328426753,1717375839586,-500.0,0.0003041,4]
[328426754,1717375839595,-237.58,0.0003041,4]
[328426755,1717375839604,-500.0,0.0003041,4]
[328426756,1717375839613,-500.0,0.0003041,4]
[328426757,1717375839623,-500.0,0.0003041,4]
[328426758,1717375839632,-500.0,0.0003041,4]
[328426759,1717375839641,-500.0,0.0003041,4]
[328426760,1717375839650,-300.45628764,0.0003041,4]
[328426761,1717375839659,-666.33,0.0003041,4]
[328426762,1717375839669,-151.0,0.0003041,7]
[328426763,1717375839678,-151.0,0.0003041,7]
[328426764,1717375839687,-151.0,0.0003041,7]
[328426765,1717375839697,-500.0,0.0003041,4]
[328426766,1717375839707,-500.0,0.0003041,4]
[328426767,1717375839722,-500.0,0.0003041,4]
[328426768,1717375839731,-568.74,0.0003041,4]
[328426769,1717375839739,-500.0,0.0003041,4]
[328426770,1717375839749,-500.0,0.0003041,4]
[328426771,1717375839759,-629.69,0.0003041,4]
[328426772,1717375839769,-500.0,0.0003041,4]
[328426773,1717375839778,-500.0,0.0003041,4]
[328426774,1717375839788,-500.0,0.0003041,4]
[328426775,1717375839797,-500.0,0.0003041,4]
[328426776,1717375839806,-565.40522576,0.0003041,4]
[328426777,1717375839816,-250.0,0.0003041,4]
[328426778,1717375839825,-695.87,0.0003041,4]
[328426779,1717375839834,-500.0,0.0003041,4]
[328426780,1717375839843,-500.0,0.0003041,4]
[328426781,1717375839853,-663.81,0.0003041,4]
[328426782,1717375839862,-500.0,0.0003041,2]
[328426783,1717375839871,-500.0,0.0003041,4]
[328426784,1717375839881,-450.08851459,0.0003041,4]
[328426785,1717375839890,-500.0,0.0003041,4]
[328426786,1717375839900,-500.0,0.0003041,4]
[328426787,1717375839909,-500.0,0.0003041,4]
[328426788,1717375839918,-500.0,0.0003041,4]
[328426789,1717375839927,-500.0,0.0003041,4]
[328426790,1717375839937,-500.0,0.0003041,4]
[328426791,1717375839947,-500.0,0.0003041,4]
[328426792,1717375839956,-500.0,0.0003041,4]
[328426793,1717375839967,-500.0,0.0003041,4]
[328426794,1717375839976,-614.32,0.0003041,4]
[328426795,1717375839985,-500.0,0.0003041,4]
[328426796,1717375839994,-500.0,0.0003041,4]
[328426797,1717375840004,-500.0,0.0003041,4]
[328426798,1717375840013,-500.0,0.0003041,4]
[328426799,1717375840022,-500.0,0.0003041,4]
[328426800,1717375840032,-500.0,0.0003041,4]
[328426801,1717375840041,-500.0,0.0003041,4]
[328426802,1717375840050,-500.0,0.0003041,4]
[328426803,1717375840060,-500.0,0.0003041,4]
[328426804,1717375840069,-500.0,0.0003041,4]